bitfinex-derivatives/quotes_BTCF0:USTF0_20230901
["timestamp","ask_amount","ask_price","bid_price","bid_amount"]
[1693572606009,0.22969579,26049.0,26048.0,0.743]
[1693572609010,0.22969579,26050.0,26048.0,0.743]
[1693572609345,0.22969579,26050.0,26049.0,0.4153]
[1693572610319,0.34093324,26050.0,26049.0,0.4153]
[1693572610518,0.28824417,26050.0,26049.0,0.4183]
[1693572610817,0.23169579,26050.0,26049.0,0.4183]
[1693572611525,0.23169579,26050.0,26049.0,0.4213]
[1693572611932,0.28832665,26050.0,26049.0,0.4213]
[1693572612133,0.05863086,26050.0,26049.0,0.4213]
[1693572613428,0.002,26050.0,26049.0,0.4213]
[1693572614432,0.23144044,26050.0,26049.0,0.4213]
[1693572616629,0.002,26050.0,26049.0,0.4213]
[1693572617034,0.05854838,26050.0,26049.0,0.4213]
[1693572617834,0.13323745,26050.0,26049.0,0.4213]
[1693572619341,0.07854838,26050.0,26049.0,0.4213]
[1693572621929,0.13323745,26050.0,26049.0,0.4213]
[1693572622145,0.30798882,26050.0,26049.0,0.4213]
[1693572624239,0.36267789,26050.0,26049.0,0.4213]
[1693572624439,0.30798882,26050.0,26049.0,0.4213]
[1693572624644,0.77797789,26050.0,26049.0,0.4213]
[1693572626435,0.75797789,26050.0,26049.0,0.4213]
[1693572626640,0.77797789,26050.0,26049.0,0.4213]
[1693572627429,0.75797789,26050.0,26049.0,0.4213]
[1693572627640,0.70328882,26050.0,26049.0,0.4213]
[1693572627843,0.75797789,26050.0,26049.0,0.4213]
[1693572631342,0.77797789,26050.0,26049.0,0.006]
[1693572631538,0.60420847,26050.0,26049.0,0.006]
[1693572631747,0.87210814,26050.0,26049.0,0.006]
[1693572637458,0.60420847,26050.0,26049.0,0.006]
[1693572642354,0.5295194,26050.0,26049.0,0.4213]
[1693572642952,0.74093222,26050.0,26049.0,0.4213]
[1693572643351,0.7974806,26050.0,26049.0,0.4213]
[1693572643654,0.5295194,26050.0,26049.0,0.4213]
[1693572643853,0.58420847,26050.0,26049.0,0.4213]
[1693572644054,0.60420847,26050.0,26049.0,0.4213]
[1693572644760,0.58420847,26050.0,26049.0,0.4213]
[1693572648761,0.85224996,26050.0,26049.0,0.4213]
[1693572652164,0.58420847,26050.0,26049.0,0.4213]
[1693572654269,0.58420847,26050.0,26049.0,0.006]
[1693572655968,0.67936139,26050.0,26049.0,0.006]
[1693572656368,0.3,26045.0,26044.0,0.4153]
[1693572656567,0.77097102,26045.0,26044.0,0.4153]
[1693572656762,0.01829,26044.0,26042.0,0.00057594]
[1693572657069,0.64500566,26043.0,26041.0,0.4153]
[1693572657369,0.52653745,26042.0,26041.0,0.4344]
[1693572659264,0.52653745,26042.0,26041.0,0.4674]
[1693572661474,0.52653745,26042.0,26041.0,0.053]
[1693572661673,0.11123745,26042.0,26041.0,0.4683]
[1693572662080,0.05654838,26042.0,26041.0,0.4683]
[1693572662469,0.11123745,26042.0,26041.0,0.4683]
[1693572663481,0.54425151,26042.0,26041.0,0.033]
[1693572663778,0.84809151,26042.0,26041.0,0.033]
[1693572663973,1.07779717,26042.0,26041.0,0.033]
[1693572664365,1.67779717,26042.0,26041.0,0.033]
[1693572664573,1.67779717,26042.0,26041.0,0.00199]
[1693572664574,2.72370198,26042.0,26041.0,0.00199]
[1693572664975,2.99128225,26042.0,26041.0,0.00199]
[1693572665176,2.72370198,26042.0,26041.0,0.00199]
[1693572665378,0.004581,26040.0,26039.0,0.000576]
[1693572665571,0.3,26036.0,26035.0,0.15]
[1693572665772,0.3,26036.0,26034.0,0.4153]
[1693572665773,0.016624,26035.0,26034.0,0.4153]
[1693572665972,0.52653745,26035.0,26034.0,0.418676]
[1693572666175,0.71754557,26035.0,26034.0,0.568676]
[1693572666573,0.52653745,26035.0,26034.0,0.568676]
[1693572666978,0.71754002,26035.0,26034.0,0.17]
[1693572667173,0.73525408,26035.0,26034.0,0.15]
[1693572667781,0.73909408,26035.0,26034.0,0.15]
[1693572668183,0.75809408,26035.0,26034.0,0.153]
[1693572668584,0.77809408,26035.0,26034.0,0.14101]
[1693572668893,0.77809408,26035.0,26034.0,0.13701999]
[1693572669287,0.58709151,26035.0,26034.0,0.13701999]
[1693572672581,0.039,26035.0,26034.0,0.55231999]
[1693572672980,0.09368907,26035.0,26034.0,0.55231999]
[1693572673185,0.15023745,26035.0,26034.0,0.55231999]
[1693572674783,0.18032424,26035.0,26034.0,0.55231999]
[1693572676191,0.6171783,26035.0,26034.0,0.13701999]
[1693572679595,0.6133383,26035.0,26034.0,0.13701999]
[1693572679792,0.55864923,26035.0,26034.0,0.13701999]
[1693572680198,0.6133383,26035.0,26034.0,0.13701999]
[1693572682085,0.48438679,26035.0,26034.0,0.13701999]
[1693572682288,0.48438679,26035.0,26034.0,0.15701999]
[1693572684297,0.59562424,26035.0,26034.0,0.15701999]
[1693572686900,0.54093517,26035.0,26034.0,0.15701999]
[1693572687197,0.59562424,26035.0,26034.0,0.15701999]
[1693572687402,0.59562424,26035.0,26034.0,0.13701999]
[1693572688103,0.54093517,26035.0,26034.0,0.13701999]
[1693572688299,0.59562424,26035.0,26034.0,0.13701999]
[1693572690206,0.6371783,26035.0,26034.0,0.13701999]
[1693572691198,0.6171783,26035.0,26034.0,0.13701999]
[1693572692902,0.6133383,26035.0,26034.0,0.13701999]
[1693572693110,0.48438679,26035.0,26034.0,0.57231999]
[1693572697309,0.82778334,26035.0,26034.0,0.13701999]
[1693572697817,0.80778334,26035.0,26034.0,0.13701999]
[1693572698013,0.82778334,26035.0,26034.0,0.13701999]
[1693572698515,0.80778334,26035.0,26034.0,0.13701999]
[1693572700323,0.6171783,26035.0,26034.0,0.13701999]
[1693572700818,0.7153,26033.0,26032.0,0.00057616]
[1693572701012,1.29076643,26033.0,26032.0,0.00057616]
[1693572701702,1.30848049,26033.0,26032.0,0.00057616]
[1693572702620,0.00384,26031.0,26027.0,0.1657]
[1693572702820,0.4153,26028.0,26027.0,0.14728616]
[1693572703015,0.62625138,26028.0,26021.0,0.44586617]
[1693572703210,0.4153,26022.0,26021.0,0.46586617]
[1693572703611,0.4153,26022.0,26021.0,0.4353]
[1693572703811,0.47184838,26022.0,26021.0,0.5962]
[1693572704315,0.52653745,26022.0,26021.0,0.5962]
[1693572704510,0.52853745,26022.0,26021.0,0.6332]
[1693572705318,0.47384838,26022.0,26021.0,0.6332]
[1693572705910,0.47284838,26022.0,26021.0,0.6212]
[1693572706112,0.47484838,26022.0,26021.0,0.6582]
[1693572706518,0.49684838,26022.0,26021.0,0.6352]
[1693572706914,0.49684838,26022.0,26021.0,0.2199]
[1693572707229,0.57253745,26022.0,26021.0,0.1849]
[1693572711017,0.51784838,26022.0,26021.0,0.1849]
[1693572711218,0.57253745,26022.0,26021.0,0.1649]
[1693572713124,0.51784838,26022.0,26021.0,0.1649]
[1693572714223,0.57253745,26022.0,26021.0,0.1649]
[1693572714430,0.59025151,26022.0,26021.0,0.1649]
[1693572714931,0.61025151,26022.0,26021.0,0.1649]
[1693572720025,0.47901406,26022.0,26021.0,0.1649]
[1693572721235,0.4613,26022.0,26021.0,0.1649]
[1693572721434,0.046,26022.0,26021.0,0.6002]
[1693572721835,0.00057645,26024.0,26021.0,0.6002]
[1693572722029,0.00057645,26024.0,26023.0,0.4153]
[1693572722232,0.00057645,26024.0,26023.0,0.4353]
[1693572723236,0.00157645,26024.0,26023.0,0.4383]
[1693572723439,0.00257645,26024.0,26023.0,0.4413]
[1693572724443,0.00157645,26024.0,26023.0,0.4423]
[1693572724743,0.43459051,26024.0,26023.0,0.4223]
[1693572724940,0.43359051,26024.0,26023.0,0.4193]
[1693572725143,0.54482796,26024.0,26023.0,0.4243]
[1693572725534,0.49013889,26024.0,26023.0,0.4243]
[1693572725843,0.49113889,26024.0,26023.0,0.4193]
[1693572726535,0.54582796,26024.0,26023.0,0.4193]
[1693572726740,0.54682796,26024.0,26023.0,0.4153]
[1693572726940,0.49213889,26024.0,26023.0,0.4153]
[1693572727139,0.41787645,26024.0,26023.0,0.4153]
[1693572729538,0.41787645,26024.0,26023.0,0.4353]
[1693572730844,0.41787645,26024.0,26023.0,0.4153]
[1693572731140,0.41787645,26024.0,26023.0,0.4353]
[1693572731842,0.41787645,26024.0,26023.0,0.4153]
[1693572732146,0.41787645,26024.0,26023.0,0.4353]
[1693572736458,0.41787645,26024.0,26023.0,0.4153]
[1693572736654,0.45559051,26024.0,26023.0,0.4153]
[1693572736953,0.43559051,26024.0,26021.0,0.5762]
[1693572737156,0.4153,26022.0,26021.0,0.5762]
[1693572737745,0.4153,26022.0,26021.0,0.5962]
[1693572737950,0.4153,26022.0,26021.0,0.1809]
[1693572738150,0.41687645,26024.0,26021.0,0.6142]
[1693572738455,0.41587645,26024.0,26023.0,0.4153]
[1693572738653,0.43359051,26024.0,26023.0,0.4153]
[1693572739062,0.41587645,26024.0,26023.0,0.4153]
[1693572739254,0.41587645,26024.0,26023.0,0.4353]
[1693572739953,0.00057645,26024.0,26023.0,0.4353]
[1693572740152,0.60625138,26030.0,26024.0,0.4153]
[1693572740352,0.60625138,26030.0,26029.0,0.4153]
[1693572740755,0.62396544,26030.0,26029.0,0.4153]
[1693572741467,0.62396544,26030.0,26027.0,0.4153]
[1693572741760,0.4153,26028.0,26027.0,0.4153]
[1693572741965,0.43301406,26028.0,26027.0,0.4153]
[1693572742163,0.4153,26028.0,26027.0,0.4153]
[1693572742955,0.43401406,26028.0,26027.0,0.4153]
[1693572743457,0.001,26028.0,26027.0,0.4353]
[1693572743656,0.001,26028.0,26027.0,0.4153]
[1693572744058,0.001,26028.0,26027.0,0.4353]
[1693572744456,0.001,26030.0,26027.0,0.4403]
[1693572744761,0.001,26030.0,26029.0,0.4153]
[1693572745064,0.19195138,26030.0,26029.0,0.4153]
[1693572745365,0.19095138,26031.0,26029.0,0.4353]
[1693572745560,0.19095138,26031.0,26030.0,0.4153]
[1693572745754,0.19095138,26031.0,26030.0,0.5751]
[1693572746063,0.44422898,26033.0,26030.0,0.5751]
[1693572746362,0.60629389,26031.0,26030.0,0.5751]
[1693572747662,0.60729389,26031.0,26030.0,0.5761]
[1693572748561,0.66384227,26031.0,26030.0,0.5761]
[1693572749466,0.68155633,26031.0,26030.0,0.5761]
[1693572749761,0.62600795,26031.0,26030.0,0.5771]
[1693572750464,0.7372454,26031.0,26030.0,0.1618]
[1693572750958,0.49156244,26031.0,26030.0,0.1618]
[1693572751164,0.68247503,26031.0,26030.0,0.1618]
[1693572751364,0.62592665,26031.0,26030.0,0.1618]
[1693572751966,0.62592665,26031.0,26030.0,0.5771]
[1693572751967,0.43501406,26031.0,26030.0,0.5771]
[1693572753668,0.43885406,26031.0,26030.0,0.5771]
[1693572755064,0.43785406,26031.0,26030.0,0.5761]
[1693572755259,0.43401406,26031.0,26030.0,0.5801]
[1693572755460,0.43685406,26031.0,26030.0,0.5841]
[1693572755662,0.43301406,26031.0,26030.0,0.5801]
[1693572755859,0.43685406,26031.0,26030.0,0.5841]
[1693572756064,0.43301406,26031.0,26030.0,0.5841]
[1693572756270,0.43685406,26031.0,26030.0,0.5841]
[1693572756669,0.01771406,26031.0,26030.0,0.5841]
[1693572756863,0.00441625,26033.0,26030.0,0.5841]
[1693572757065,0.02213031,26033.0,26032.0,0.4153]
[1693572757259,0.01829031,26033.0,26032.0,0.8306]
[1693572758468,0.01929031,26033.0,26032.0,0.8316]
[1693572759471,0.01929031,26033.0,26032.0,0.8346]
[1693572759472,0.01829031,26033.0,26032.0,0.8346]
[1693572759868,0.01829031,26033.0,26032.0,0.8396]
[1693572760069,0.01829031,26033.0,26032.0,0.4243]
[1693572760270,0.01829031,26033.0,26032.0,0.009]
[1693572760271,0.45743031,26033.0,26032.0,0.009]
[1693572761275,0.51211938,26033.0,26032.0,0.009]
[1693572761567,0.51311938,26033.0,26032.0,0.005]
[1693572761765,0.45843031,26033.0,26032.0,0.005]
[1693572761969,0.51311938,26033.0,26032.0,0.005]
[1693572762168,0.45843031,26033.0,26032.0,0.005]
[1693572762470,0.00384,26032.0,26031.0,0.1623]
[1693572762673,0.41914,26032.0,26031.0,0.1623]
[1693572763464,0.43685406,26032.0,26031.0,0.1623]
[1693572764474,0.43685406,26032.0,26031.0,0.1663]
[1693572764874,0.43685406,26032.0,26031.0,0.1713]
[1693572765175,0.49340244,26032.0,26031.0,0.1713]
[1693572765578,0.43685406,26032.0,26031.0,0.1713]
[1693572770383,0.02155406,26032.0,26031.0,0.5866]
[1693572777681,0.21246665,26032.0,26031.0,0.5866]
[1693572780980,0.26715572,26032.0,26031.0,0.5866]
[1693572781185,0.21246665,26032.0,26031.0,0.5866]
[1693572781386,0.20106665,26032.0,26031.0,0.59044]
[1693572781685,0.16011551,26035.0,26032.0,0.41914]
[1693572781886,0.16011551,26035.0,26034.0,0.41914]
[1693572782092,1.01942605,26040.0,26035.0,0.00384]
[1693572782294,0.22872605,26039.0,26035.0,0.02]
[1693572782484,1.03942605,26040.0,26038.0,0.4153]
[1693572782677,0.25888011,26040.0,26039.0,0.4153]
[1693572782882,0.2899514,26040.0,26039.0,0.4153]
[1693572783292,0.40118885,26040.0,26039.0,0.4153]
[1693572783593,0.81648885,26040.0,26038.0,0.4153]
[1693572783786,0.4153,26039.0,26038.0,0.4153]
[1693572783989,0.52653745,26039.0,26038.0,0.4153]
[1693572784187,0.7752635,26039.0,26038.0,0.4153]
[1693572784584,0.54653745,26039.0,26038.0,0.4153]
[1693572784996,0.78641756,26039.0,26038.0,0.4183]
[1693572785791,0.78741756,26039.0,26038.0,0.4213]
[1693572786390,0.79123756,26039.0,26038.0,0.4213]
[1693572786891,0.73654849,26039.0,26038.0,0.4213]
[1693572787079,0.79123756,26039.0,26038.0,0.4213]
[1693572787892,0.79123756,26039.0,26036.0,0.1607]
[1693572787893,0.00382,26037.0,26036.0,0.1607]
[1693572788190,0.55451151,26037.0,26036.0,0.1607]
[1693572788987,0.55451151,26037.0,26036.0,0.1637]
[1693572788988,0.50382244,26037.0,26036.0,0.1637]
[1693572789190,0.06470244,26037.0,26036.0,0.579]
[1693572789384,0.01197406,26037.0,26036.0,0.579]
[1693572789586,0.01215406,26037.0,26036.0,0.582]
[1693572789786,0.01597406,26037.0,26036.0,0.582]
[1693572790394,0.50782244,26037.0,26036.0,0.1667]
[1693572790792,0.56251151,26037.0,26036.0,0.1667]
[1693572791587,0.54251151,26037.0,26036.0,0.1667]
[1693572791787,0.43127406,26037.0,26036.0,0.1667]
[1693572791991,0.01597406,26037.0,26036.0,0.582]
[1693572792191,0.008,26037.0,26036.0,0.582]
[1693572792394,0.01182,26037.0,26036.0,0.582]
[1693572792592,0.01597406,26037.0,26036.0,0.582]
[1693572793798,0.01182,26037.0,26036.0,0.582]
[1693572795098,0.008,26037.0,26036.0,0.582]
[1693572796101,0.008,26037.0,26036.0,0.602]
[1693572798189,0.004,26037.0,26036.0,0.603]
[1693572798395,0.004,26037.0,26036.0,0.583]
[1693572798790,0.05654838,26038.0,26036.0,0.585]
[1693572798995,0.05654838,26038.0,26037.0,0.4153]
[1693572799195,0.00415406,26038.0,26037.0,0.4153]
[1693572799397,0.05884313,26038.0,26037.0,0.4153]
[1693572799798,0.06070244,26038.0,26037.0,0.4153]
[1693572800099,0.11505745,26038.0,26037.0,0.4153]
[1693572800603,0.11505745,26038.0,26036.0,0.585]
[1693572800604,0.00382,26037.0,26036.0,0.585]
[1693572800904,0.53035745,26037.0,26036.0,0.585]
[1693572801103,0.55035745,26037.0,26036.0,0.585]
[1693572801299,0.55451151,26037.0,26036.0,0.1697]
[1693572801506,0.55451151,26037.0,26036.0,0.1647]
[1693572801691,0.55451151,26037.0,26036.0,0.1607]
[1693572802298,0.56251151,26037.0,26036.0,0.1647]
[1693572802507,0.54251151,26037.0,26036.0,0.1647]
[1693572802803,0.56251151,26037.0,26036.0,0.1647]
[1693572804092,0.69502171,26037.0,26036.0,0.1647]
[1693572804293,0.19103457,26040.0,26036.0,0.6]
[1693572804499,0.19103457,26041.0,26040.0,0.83444]
[1693572804795,0.30382,26043.0,26041.0,0.00384]
[1693572804796,0.19103457,26042.0,26041.0,0.00384]
[1693572805001,0.19103457,26042.0,26041.0,0.43914]
[1693572805510,0.00797406,26042.0,26041.0,0.43914]
[1693572805698,0.02797406,26042.0,26041.0,0.4353]
[1693572806001,0.02797406,26042.0,26041.0,0.4153]
[1693572806204,0.11921151,26042.0,26041.0,0.4183]
[1693572806403,0.00797406,26042.0,26041.0,0.4183]
[1693572806609,0.19893158,26042.0,26041.0,0.4183]
[1693572806798,0.19511158,26042.0,26041.0,0.42214]
[1693572806998,0.19095752,26042.0,26041.0,0.42214]
[1693572807499,0.19095752,26042.0,26041.0,0.44214]
[1693572807713,0.19095752,26042.0,26041.0,0.42514]
[1693572809193,0.19095752,26042.0,26041.0,0.42214]
[1693572809398,0.19095752,26042.0,26041.0,0.42514]
[1693572810309,0.19095752,26042.0,26041.0,0.58474]
[1693572810908,0.19511158,26042.0,26041.0,0.58474]
[1693572811097,0.19095752,26042.0,26041.0,0.58474]
[1693572811302,0.30601497,26042.0,26041.0,0.5809]
[1693572811897,0.2513259,26042.0,26041.0,0.5809]
[1693572812106,0.19893158,26042.0,26041.0,0.5809]
[1693572812411,0.19477752,26042.0,26041.0,0.5809]
[1693572813199,0.19893158,26042.0,26041.0,0.5809]
[1693572814999,0.00797406,26042.0,26041.0,0.5809]
[1693572817102,0.19497605,26042.0,26041.0,0.5809]
[1693572817307,0.00415406,26042.0,26041.0,0.5809]
[1693572817816,0.19082199,26043.0,26041.0,0.5809]
[1693572818000,0.19139799,26044.0,26043.0,0.00384]
[1693572818304,0.19555205,26044.0,26043.0,0.4153]
[1693572819902,0.19555205,26044.0,26043.0,0.4163]
[1693572820103,0.00473006,26044.0,26043.0,0.4163]
[1693572820498,0.00855006,26044.0,26043.0,0.4163]
[1693572821101,0.00473006,26044.0,26043.0,0.4173]
[1693572822406,0.00855006,26044.0,26043.0,0.4173]
[1693572822705,0.00473006,26044.0,26043.0,0.4173]
[1693572823102,0.00855006,26044.0,26043.0,0.4173]
[1693572823301,0.00473006,26044.0,26043.0,0.4173]
[1693572824298,0.00855006,26044.0,26043.0,0.4173]
[1693572824503,0.00473006,26044.0,26043.0,0.4173]
[1693572825699,0.00855006,26044.0,26043.0,0.4173]
[1693572825907,0.00473006,26044.0,26043.0,0.4173]
[1693572826101,0.00855006,26044.0,26043.0,0.4173]
[1693572826303,0.00473006,26044.0,26043.0,0.4173]
[1693572827698,0.00855006,26044.0,26043.0,0.4173]
[1693572828101,0.00473006,26044.0,26043.0,0.4173]
[1693572828700,0.00855006,26044.0,26043.0,0.4173]
[1693572829308,0.00473006,26044.0,26043.0,0.4173]
[1693572829505,0.00855006,26044.0,26043.0,0.4173]
[1693572829705,0.00473006,26044.0,26043.0,0.4173]
[1693572830208,0.00855006,26044.0,26043.0,0.4173]
[1693572830600,0.00473006,26044.0,26043.0,0.4173]
[1693572831813,0.00855006,26044.0,26043.0,0.4173]
[1693572832005,0.00473006,26044.0,26043.0,0.4173]
[1693572833902,0.00855006,26044.0,26043.0,0.4173]
[1693572834113,0.00473006,26044.0,26043.0,0.4173]
[1693572834702,0.00855006,26044.0,26043.0,0.4173]
[1693572834901,0.00473006,26044.0,26043.0,0.4173]
[1693572835311,0.00855006,26044.0,26043.0,0.4173]
[1693572835512,0.00473006,26044.0,26043.0,0.4173]
[1693572836411,0.00855006,26044.0,26043.0,0.4173]
[1693572836809,0.00473006,26044.0,26043.0,0.4173]
[1693572837012,0.00855006,26044.0,26043.0,0.4173]
[1693572837213,0.00473006,26044.0,26043.0,0.4173]
[1693572837405,0.00855006,26044.0,26043.0,0.4173]
[1693572837605,0.00473006,26044.0,26043.0,0.4173]
[1693572837805,0.00855006,26044.0,26043.0,0.4173]
[1693572838514,0.00473006,26044.0,26043.0,0.4173]
[1693572839814,0.00855006,26044.0,26043.0,0.4173]
[1693572840713,0.00473006,26044.0,26043.0,0.4173]
[1693572841415,0.00855006,26044.0,26043.0,0.4173]
[1693572841616,0.00473006,26044.0,26043.0,0.4173]
[1693572842019,0.00855006,26044.0,26043.0,0.4173]
[1693572842220,0.00473006,26044.0,26043.0,0.4173]
[1693572842423,0.19103948,26044.0,26043.0,0.4373]
[1693572842628,0.67064706,26051.0,26043.0,0.4173]
[1693572842629,0.00382,26050.0,26043.0,0.4173]
[1693572842813,0.30496807,26053.0,26049.0,0.4153]
[1693572842814,1.05754706,26052.0,26049.0,0.4153]
[1693572843016,0.0555911,26051.0,26047.0,0.4153]
[1693572843318,0.05016213,26052.0,26050.0,0.4153]
[1693572843517,0.05016213,26052.0,26051.0,0.4153]
[1693572843911,0.37260237,26052.0,26051.0,0.4153]
[1693572844617,0.10575531,26052.0,26051.0,0.4153]
[1693572844924,0.02,26052.0,26051.0,0.4153]
[1693572845125,0.59686472,26054.0,26051.0,0.4153]
[1693572845319,0.61686472,26054.0,26053.0,0.4153]
[1693572845622,0.40560458,26054.0,26053.0,0.4153]
[1693572845817,0.35001766,26054.0,26053.0,0.4153]
[1693572846027,0.35058404,26054.0,26053.0,0.4153]
[1693572846617,0.35058404,26054.0,26053.0,0.4183]
[1693572848721,0.35058404,26054.0,26053.0,0.4213]
[1693572849519,0.33058404,26054.0,26053.0,0.4213]
[1693572849720,0.35058404,26054.0,26053.0,0.4213]
[1693572852023,0.05058404,26054.0,26053.0,0.4213]
[1693572852723,0.02056638,26054.0,26053.0,0.4213]
[1693572853931,0.00056638,26054.0,26053.0,0.4213]
[1693572862236,0.05711476,26054.0,26053.0,0.4213]
[1693572862440,0.08758078,26054.0,26053.0,0.4213]
[1693572863037,0.0310324,26054.0,26053.0,0.4213]
[1693572864242,0.08758078,26054.0,26053.0,0.4213]
[1693572865141,0.0310324,26054.0,26053.0,0.4213]
[1693572866444,0.0310324,26054.0,26053.0,0.42514]
[1693572869049,0.08758078,26054.0,26053.0,0.42514]
[1693572869745,0.08758078,26054.0,26053.0,0.4213]
[1693572870061,0.16226985,26054.0,26053.0,0.4213]
[1693572872354,0.10758078,26054.0,26053.0,0.4213]
[1693572872659,0.16226985,26054.0,26053.0,0.4213]
[1693572872851,0.10758078,26054.0,26053.0,0.4213]
[1693572873048,0.08758078,26054.0,26053.0,0.4213]
[1693572873249,0.0310324,26054.0,26053.0,0.42514]
[1693572874759,0.08758078,26054.0,26053.0,0.42514]
[1693572875958,0.14226985,26054.0,26053.0,0.42514]
[1693572876257,0.37124153,26054.0,26053.0,0.42514]
[1693572876453,0.14226985,26054.0,26053.0,0.42514]
[1693572876957,0.37124153,26054.0,26053.0,0.42514]
[1693572878862,0.31655246,26054.0,26053.0,0.42514]
[1693572879949,0.37124153,26054.0,26053.0,0.4213]
[1693572880154,0.19786032,26054.0,26053.0,0.4213]
[1693572882758,0.46470738,26054.0,26053.0,0.4213]
[1693572885056,0.19786032,26054.0,26053.0,0.4213]
[1693572885256,0.46470738,26054.0,26053.0,0.4213]
[1693572887967,0.41001831,26054.0,26053.0,0.4213]
[1693572888158,0.35346993,26054.0,26053.0,0.4213]
[1693572889468,0.35346993,26054.0,26053.0,0.42514]
[1693572893069,0.46470738,26054.0,26053.0,0.42514]
[1693572893576,0.41001831,26054.0,26053.0,0.42514]
[1693572894371,0.46470738,26054.0,26053.0,0.42514]
[1693572894570,0.41001831,26054.0,26053.0,0.42514]
[1693572894972,0.19786032,26054.0,26053.0,0.42514]
[1693572895168,0.14317125,26054.0,26053.0,0.42514]
[1693572895563,0.19786032,26054.0,26053.0,0.42514]
[1693572896166,0.14317125,26054.0,26053.0,0.42514]
[1693572897175,0.19786032,26054.0,26053.0,0.42514]
[1693572897368,0.14317125,26054.0,26053.0,0.42514]
[1693572897872,0.19786032,26054.0,26053.0,0.42514]
[1693572898374,0.14317125,26054.0,26053.0,0.42514]
[1693572899678,0.08662287,26054.0,26053.0,0.42514]
[1693572902379,0.35458072,26054.0,26053.0,0.42514]
[1693572903277,0.46581817,26054.0,26053.0,0.42514]
[1693572903669,0.19786032,26054.0,26053.0,0.4213]
[1693572903875,0.93316032,26054.0,26053.0,0.006]
[1693572904181,1.31754663,26054.0,26053.0,0.006]
[1693572906281,1.01257856,26054.0,26053.0,0.006]
[1693572907481,1.31865496,26054.0,26053.0,0.006]
[1693572909184,1.31865496,26054.0,26053.0,0.4213]
[1693572910185,0.80192287,26054.0,26053.0,0.4213]
[1693572910577,0.85847125,26054.0,26053.0,0.4213]
[1693572910772,0.91689721,26054.0,26053.0,0.4213]
[1693572911185,0.97158628,26054.0,26053.0,0.4213]
[1693572912087,1.30238863,26054.0,26053.0,0.4213]
[1693572912290,1.24584025,26054.0,26053.0,0.4213]
[1693572912590,1.30052932,26054.0,26053.0,0.4213]
[1693572913190,1.30238863,26054.0,26053.0,0.4213]
[1693572913785,1.3570777,26054.0,26053.0,0.4213]
[1693572916993,0.9417777,26054.0,26053.0,0.4213]
[1693572917298,0.9417777,26054.0,26053.0,0.40212]
[1693572917785,0.9417777,26054.0,26053.0,0.39912]
[1693572922891,0.88708863,26054.0,26053.0,0.39912]
[1693572923095,0.9417777,26054.0,26053.0,0.39912]
[1693572924099,1.3570777,26054.0,26053.0,0.4153]
[1693572927699,1.3770777,26054.0,26050.0,0.74084]
[1693572927997,0.68308929,26051.0,26050.0,0.74084]
[1693572928304,0.84991721,26051.0,26050.0,0.737]
[1693572928493,1.14991721,26051.0,26050.0,0.737]
[1693572928694,1.14991721,26051.0,26050.0,0.3217]
[1693572929102,1.15291721,26051.0,26050.0,0.3217]
[1693572929402,1.17291721,26051.0,26049.0,0.00057578]
[1693572929600,0.84991721,26050.0,26049.0,0.00057578]
[1693572931004,0.84991721,26050.0,26049.0,0.00441578]
[1693572931602,0.84991721,26050.0,26049.0,0.00941578]
[1693572931796,0.79522814,26050.0,26049.0,0.42871578]
[1693572932404,0.84991721,26050.0,26049.0,0.42871578]
[1693572932901,0.79822814,26050.0,26049.0,0.42771578]
[1693572933102,0.79822814,26050.0,26049.0,0.44771578]
[1693572933302,0.80122814,26050.0,26049.0,0.42571578]
[1693572933509,0.80122814,26050.0,26049.0,0.44571578]
[1693572934103,0.3,26048.0,26045.0,0.00384]
[1693572934404,0.01908,26045.0,26043.0,0.1257925]
[1693572934600,0.47184838,26044.0,26043.0,0.0877325]
[1693572935201,0.52653745,26044.0,26043.0,0.0877325]
[1693572935596,0.52653745,26044.0,26043.0,0.1167325]
[1693572936012,0.52653745,26044.0,26043.0,0.0877325]
[1693572936202,0.1079516,26047.0,26044.0,0.05468907]
[1693572936395,0.4153,26045.0,26043.0,0.1205725]
[1693572936601,0.1279516,26047.0,26039.0,0.4153]
[1693572936602,0.3,26040.0,26039.0,0.4153]
[1693572936802,0.7153,26040.0,26036.0,0.4153]
[1693572937009,0.4153,26037.0,26036.0,0.4353]
[1693572937203,0.4153,26037.0,26036.0,0.48998907]
[1693572937404,0.19099195,26039.0,26036.0,0.54653745]
[1693572937607,0.19099195,26039.0,26038.0,0.41914]
[1693572937800,0.19099195,26039.0,26038.0,0.49382907]
[1693572938001,0.19099195,26039.0,26038.0,0.55037745]
[1693572938402,0.90629195,26040.0,26039.0,0.00384]
[1693572938607,0.90629195,26040.0,26039.0,0.41914]
[1693572938915,0.90629195,26040.0,26039.0,0.69833745]
[1693572939096,0.90629195,26040.0,26039.0,0.5871]
[1693572939306,0.90929195,26040.0,26039.0,0.59094]
[1693572939503,0.90929195,26040.0,26039.0,0.60694]
[1693572939808,0.96284033,26040.0,26039.0,0.60694]
[1693572940108,0.90729195,26040.0,26039.0,0.72833745]
[1693572940506,0.96284033,26040.0,26039.0,0.69533745]
[1693572940709,0.96284033,26040.0,26039.0,0.65878907]
[1693572940909,0.96284033,26040.0,26039.0,0.5841]
[1693572941610,0.90629195,26040.0,26032.0,17.11767145]
[1693572941811,0.90629195,26040.0,26039.0,0.4153]
[1693572942012,1.0175294,26040.0,26039.0,0.4163]
[1693572942210,0.96284033,26040.0,26039.0,0.4163]
[1693572942507,0.77184838,26040.0,26039.0,0.4163]
[1693572943112,0.82653745,26040.0,26039.0,0.4163]
[1693572944208,0.77184838,26040.0,26039.0,0.4163]
[1693572944414,0.82653745,26040.0,26039.0,0.4163]
[1693572944709,0.77184838,26040.0,26039.0,0.39731]
[1693572945107,0.80267876,26040.0,26039.0,0.39731]
[1693572945817,0.85736783,26040.0,26039.0,0.39731]
[1693572946308,0.80267876,26040.0,26039.0,0.39731]
[1693572946506,0.85736783,26040.0,26039.0,0.39731]
[1693572946709,0.80267876,26040.0,26039.0,0.20578684]
[1693572946913,0.38737876,26040.0,26039.0,0.20962684]
[1693572947107,0.44206783,26040.0,26039.0,0.20962684]
[1693572947306,0.39121876,26040.0,26039.0,0.20962684]